[Event "44th Chess Olympiad Women 2022"]
[Site "Chennai"]
[Date "2022.08.05"]
[Round "7.44"]
[White "Gonzalez Peguero, Mary Loly"]
[Black "De la Riva Real, Jana"]
[Result "1-0"]
[WhiteElo "1666"]
[BlackElo "1167"]
[Annotator "NA RC"]
[PlyCount "113"]
[EventDate "2022.??.??"]
[TimeControl "60"]

1. Nf3 {[%emt 0:00:07]} d5 {[%emt 0:00:15]} 2. g3 {[%emt 0:00:18]} Nf6 {
[%emt 0:00:33]} 3. Bg2 {[%emt 0:00:08]} c6 {[%emt 0:00:46]} 4. d3 {[%emt 0:00:
00]} Bf5 {[%emt 0:02:07]} 5. O-O {[%emt 0:01:26]} e6 {[%emt 0:01:13]} 6. Nbd2 {
[%emt 0:02:38]} Bc5 {[%emt 0:02:29]} 7. Qe1 {[%emt 0:03:34]} h6 {[%emt 0:07:39]
} 8. e4 {[%emt 0:01:52]} Bh7 {[%emt 0:09:15]} 9. Qe2 {[%emt 0:05:55]} O-O {
[%emt 0:03:26]} 10. e5 {[%emt 0:02:43]} Nfd7 {[%emt 0:05:46]} 11. Re1 {[%emt 0:
00:00]} Re8 {[%emt 0:06:02]} 12. Nb3 {[%emt 0:11:17]} Bb6 {[%emt 0:03:13]} 13.
Nfd4 {[%emt 0:06:46]} a6 {[%emt 0:07:05]} 14. h4 {[%emt 0:12:26]} c5 {[%emt 0:
00:00]} 15. Nf3 {[%emt 0:00:12]} Bf5 {[%emt 0:08:03]} 16. Bf4 {[%emt 0:03:24]}
Bg4 {[%emt 0:03:57]} 17. Qd2 {[%emt 0:05:05]} Bxf3 {[%emt 0:03:52]} 18. Bxf3 {
[%emt 0:00:26]} Nc6 {[%emt 0:01:09]} 19. Re2 {[%emt 0:04:14]} f6 {[%emt 0:00:
00]} 20. exf6 {[%emt 0:06:53]} Qxf6 {[%emt 0:00:24]} 21. Bh5 {[%emt 0:01:10]}
Rf8 {[%emt 0:11:00]} 22. Bd6 {[%emt 0:05:21]} Rfc8 {[%emt 0:00:38]} 23. Qf4 {
[%emt 0:03:54]} Qxf4 {[%emt 0:00:49]} 24. Bxf4 {[%emt 0:00:14]} e5 {[%emt 0:00:
00]} 25. Be3 {[%emt 0:02:38]} Rf8 {[%emt 0:02:02]} 26. Bg4 {[%emt 0:01:27]} d4
{[%emt 0:01:38]} 27. Bxd7 {[%emt 0:02:21]} dxe3 {[%emt 0:00:08]} 28. fxe3 {
[%emt 0:00:27]} Ne7 {[%emt 0:00:59]} 29. Nd2 {[%emt 0:01:02]} Nf5 {[%emt 0:00:
00]} 30. Be6+ {[%emt 0:01:59]} Kh8 {[%emt 0:00:19]} 31. Bxf5 {[%emt 0:00:07]}
Rxf5 {[%emt 0:00:05]} 32. Rf2 {[%emt 0:00:16]} Raf8 {[%emt 0:00:09]} 33. Raf1 {
[%emt 0:01:10]} Rxf2 {[%emt 0:00:57]} 34. Rxf2 {[%emt 0:00:06]} Rxf2 {[%emt 0:
00:00]} 35. Kxf2 {[%emt 0:00:05]} Kg8 {[%emt 0:00:25]} 36. Kf3 {[%emt 0:02:36]}
Kf7 {[%emt 0:00:11]} 37. Kg4 {[%emt 0:00:30]} Kg6 {[%emt 0:00:56]} 38. Nc4 {
[%emt 0:02:35]} Bc7 {[%emt 0:00:20]} 39. h5+ {[%emt 0:00:39]} Kf6 {[%emt 0:00:
00]} 40. Nd2 {[%emt 0:01:26]} Bb6 {[%emt 0:00:57]} 41. Kf3 {[%emt 0:30:30]} Ba7
{[%emt 0:04:50]} 42. Ne4+ {[%emt 0:00:00]} Ke6 {[%emt 0:00:19]} 43. g4 {
[%emt 0:00:00]} b5 {[%emt 0:02:38]} 44. c4 {[%emt 0:00:00]} b4 {[%emt 0:02:29]}
45. b3 {[%emt 0:00:00]} a5 {[%emt 0:01:49]} 46. Ng3 {[%emt 0:00:00]} Bb8 {
[%emt 0:06:26]} 47. Nf5 {[%emt 0:00:00]} Kf6 {[%emt 0:00:22]} 48. d4 {[%emt 0:
00:00]} exd4 {[%emt 0:01:40]} 49. exd4 {[%emt 0:00:00]} cxd4 {[%emt 0:00:21]}
50. Nxd4 {[%emt 0:00:00]} Be5 {[%emt 0:01:30]} 51. Nc6 {[%emt 0:00:00]} Bc7 {
[%emt 0:00:35]} 52. c5 {[%emt 0:00:00]} Ke6 {[%emt 0:01:55]} 53. Ke4 {[%emt 0:
00:00]} Kf6 {[%emt 0:04:45]} 54. Nd4 {[%emt 0:00:00]} Bb8 {[%emt 0:03:13]} 55.
c6 {[%emt 0:00:00]} Kg5 {[%emt 0:00:44]} 56. Kf3 {[%emt 0:00:00]} Kf6 {[%emt 0:
00:00]} 57. Nb5 {[%emt 0:00:00]} 1-0

[Event "44th Chess Olympiad Women 2022"]
[Site "Chennai"]
[Date "2022.08.05"]
[Round "7.44"]
[White "Henderson de La Fuente, Andrea"]
[Black "Rosario Almanzar, Raydily"]
[Result "1-0"]
[WhiteElo "1962"]
[BlackElo "1882"]
[Annotator "NA"]
[PlyCount "69"]
[EventDate "2022.??.??"]
[TimeControl "60"]

1. e4 {[%emt 0:00:03]} c5 {[%emt 0:00:53]} 2. Nc3 {[%emt 0:04:26]} e6 {[%emt 0:
00:00]} 3. Nge2 {[%emt 0:00:36]} a6 {[%emt 0:01:12]} 4. a4 {[%emt 0:02:34]} Nc6
{[%emt 0:03:09]} 5. g3 {[%emt 0:00:57]} Nf6 {[%emt 0:05:13]} 6. Bg2 {[%emt 0:
00:00]} d6 {[%emt 0:06:49]} 7. d4 {[%emt 0:01:15]} Be7 {[%emt 0:09:39]} 8. O-O
{[%emt 0:01:41]} Rb8 {[%emt 0:10:58]} 9. h3 {[%emt 0:03:47]} Qc7 {[%emt 0:00:
00]} 10. dxc5 {[%emt 0:16:56]} dxc5 {[%emt 0:00:11]} 11. Bf4 {[%emt 0:00:38]}
e5 {[%emt 0:03:01]} 12. Bg5 {[%emt 0:04:47]} Be6 {[%emt 0:05:56]} 13. Bxf6 {
[%emt 0:06:40]} Bxf6 {[%emt 0:00:55]} 14. Nd5 {[%emt 0:00:12]} Bxd5 {[%emt 0:
00:00]} 15. exd5 {[%emt 0:00:10]} Rd8 {[%emt 0:03:56]} 16. Nc3 {[%emt 0:07:34]}
O-O {[%emt 0:10:04]} 17. Ne4 {[%emt 0:21:42]} Be7 {[%emt 0:01:59]} 18. c3 {
[%emt 0:07:06]} c4 {[%emt 0:06:22]} 19. Qe2 {[%emt 0:08:04]} Na5 {[%emt 0:00:
00]} 20. Rad1 {[%emt 0:01:04]} f5 {[%emt 0:02:19]} 21. d6 {[%emt 0:00:22]} Bxd6
{[%emt 0:00:43]} 22. Nxd6 {[%emt 0:05:15]} Rxd6 {[%emt 0:00:03]} 23. Qxe5 {
[%emt 0:00:04]} Rd7 {[%emt 0:00:12]} 24. Qe6+ {[%emt 0:01:02]} Rdf7 {[%emt 0:
00:00]} 25. Bd5 {[%emt 0:00:33]} Kh8 {[%emt 0:00:05]} 26. Rfe1 {[%emt 0:00:33]}
Rf6 {[%emt 0:04:09]} 27. Qe7 {[%emt 0:02:14]} Qb8 {[%emt 0:00:30]} 28. Qc5 {
[%emt 0:02:09]} b6 {[%emt 0:04:03]} 29. Qe7 {[%emt 0:00:20]} Nc6 {[%emt 0:00:
00]} 30. Bxc6 {[%emt 0:01:14]} Rxc6 {[%emt 0:00:04]} 31. Rd7 {[%emt 0:00:05]}
Rg6 {[%emt 0:00:46]} 32. Kh2 {[%emt 0:00:17]} f4 {[%emt 0:00:54]} 33. g4 {
[%emt 0:01:05]} f3+ {[%emt 0:00:19]} 34. Kh1 {[%emt 0:00:07]} Rh6 {[%emt 0:00:
00]} 35. Qxg7# {[%emt 0:00:03]} 1-0

[Event "44th Chess Olympiad Women 2022"]
[Site "Chennai"]
[Date "2022.08.05"]
[Round "7.45"]
[White "Buhagiar, Melita Sunan"]
[Black "Palacios, Celina"]
[Result "0-1"]
[WhiteElo "1431"]
[BlackElo "1715"]
[Annotator "NA"]
[PlyCount "66"]
[EventDate "2022.??.??"]
[TimeControl "60"]

1. d4 {[%emt 0:00:02]} Nf6 {[%emt 0:01:26]} 2. Bf4 {[%emt 0:00:10]} d6 {
[%emt 0:00:33]} 3. Nc3 {[%emt 0:01:50]} g6 {[%emt 0:00:48]} 4. e4 {[%emt 0:00:
00]} Bg7 {[%emt 0:01:13]} 5. Qd2 {[%emt 0:02:21]} c6 {[%emt 0:02:03]} 6. f3 {
[%emt 0:04:29]} b5 {[%emt 0:02:24]} 7. Bh6 {[%emt 0:03:01]} O-O {[%emt 0:03:10]
} 8. h4 {[%emt 0:01:52]} e5 {[%emt 0:03:39]} 9. Bxg7 {[%emt 0:05:11]} Kxg7 {
[%emt 0:00:14]} 10. O-O-O {[%emt 0:02:57]} Nbd7 {[%emt 0:02:50]} 11. Kb1 {
[%emt 0:04:49]} h5 {[%emt 0:03:41]} 12. Nce2 {[%emt 0:13:00]} a5 {[%emt 0:00:
00]} 13. Nc1 {[%emt 0:00:45]} Qb6 {[%emt 0:04:50]} 14. Nh3 {[%emt 0:03:37]} b4
{[%emt 0:05:29]} 15. Bc4 {[%emt 0:07:21]} a4 {[%emt 0:08:05]} 16. Nf2 {[%emt 0:
00:00]} Ba6 {[%emt 0:03:45]} 17. Bxa6 {[%emt 0:02:28]} Rxa6 {[%emt 0:00:38]}
18. g4 {[%emt 0:06:56]} Rfa8 {[%emt 0:05:41]} 19. gxh5 {[%emt 0:09:06]} Nxh5 {
[%emt 0:02:43]} 20. dxe5 {[%emt 0:00:59]} Nxe5 {[%emt 0:06:58]} 21. f4 {
[%emt 0:00:50]} Nf3 {[%emt 0:05:05]} 22. Qe2 {[%emt 0:01:38]} Nd4 {[%emt 0:00:
00]} 23. Qe3 {[%emt 0:00:41]} c5 {[%emt 0:01:42]} 24. Rh3 {[%emt 0:09:19]} Rb8
{[%emt 0:06:04]} 25. f5 {[%emt 0:03:40]} Nb5 {[%emt 0:02:36]} 26. Ne2 {[%emt 0:
00:00]} b3 {[%emt 0:05:43]} 27. cxb3 {[%emt 0:01:35]} axb3 {[%emt 0:00:08]} 28.
Qxb3 {[%emt 0:01:03]} c4 {[%emt 0:02:18]} 29. f6+ {[%emt 0:02:36]} Nxf6 {
[%emt 0:00:33]} 30. Qc2 {[%emt 0:00:49]} Qxf2 {[%emt 0:02:42]} 31. Ka1 {
[%emt 0:00:11]} Qc5 {[%emt 0:03:52]} 32. Nc1 {[%emt 0:00:49]} c3 {[%emt 0:00:
00]} 33. bxc3 {[%emt 0:00:27]} Na3 {[%emt 0:00:08]} 0-1

[Event "44th Chess Olympiad Women 2022"]
[Site "Chennai"]
[Date "2022.08.05"]
[Round "7.45"]
[White "Herrera, Marjorie"]
[Black "Burbach, Anya Belle"]
[Result "1/2-1/2"]
[WhiteElo "1760"]
[BlackElo "1375"]
[Annotator "NA RC"]
[PlyCount "92"]
[EventDate "2022.??.??"]
[TimeControl "60"]

1. e4 {[%emt 0:00:04]} e5 {[%emt 0:00:23]} 2. Bc4 {[%emt 0:00:25]} Nf6 {
[%emt 0:00:55]} 3. d3 {[%emt 0:00:15]} Nc6 {[%emt 0:03:51]} 4. Nf3 {[%emt 0:00:
00]} Bc5 {[%emt 0:02:38]} 5. c3 {[%emt 0:00:37]} d5 {[%emt 0:02:31]} 6. exd5 {
[%emt 0:04:45]} Nxd5 {[%emt 0:00:22]} 7. Qb3 {[%emt 0:02:01]} Nf6 {[%emt 0:00:
00]} 8. Bxf7+ {[%emt 0:05:34]} Ke7 {[%emt 0:00:39]} 9. Bc4 {[%emt 0:05:32]} h6
{[%emt 0:06:55]} 10. Nh4 {[%emt 0:11:25]} Qe8 {[%emt 0:07:11]} 11. O-O {
[%emt 0:00:57]} Qh5 {[%emt 0:06:03]} 12. Nf3 {[%emt 0:04:40]} b6 {[%emt 0:00:
00]} 13. Re1 {[%emt 0:10:40]} Kd8 {[%emt 0:06:41]} 14. Bb5 {[%emt 0:12:34]} Na5
{[%emt 0:04:27]} 15. Qd1 {[%emt 0:02:47]} Bd6 {[%emt 0:06:06]} 16. h3 {[%emt 0:
00:00]} Rf8 {[%emt 0:08:02]} 17. b4 {[%emt 0:06:00]} a6 {[%emt 0:04:26]} 18.
bxa5 {[%emt 0:01:33]} axb5 {[%emt 0:00:11]} 19. axb6 {[%emt 0:00:07]} cxb6 {
[%emt 0:00:22]} 20. Nbd2 {[%emt 0:06:56]} Bb7 {[%emt 0:03:24]} 21. Ne4 {
[%emt 0:01:09]} Nxe4 {[%emt 0:01:34]} 22. dxe4 {[%emt 0:00:09]} Kc7 {[%emt 0:
00:00]} 23. Be3 {[%emt 0:01:34]} Qg6 {[%emt 0:01:21]} 24. Nd2 {[%emt 0:01:27]}
Rad8 {[%emt 0:01:07]} 25. Qb3 {[%emt 0:00:43]} Bc6 {[%emt 0:00:36]} 26. a4 {
[%emt 0:00:27]} Bc5 {[%emt 0:01:22]} 27. Bxc5 {[%emt 0:00:53]} bxc5 {[%emt 0:
00:00]} 28. Re2 {[%emt 0:02:13]} bxa4 {[%emt 0:00:50]} 29. Qc4 {[%emt 0:00:41]}
Qg5 {[%emt 0:01:50]} 30. Qxc5 {[%emt 0:00:45]} Qf4 {[%emt 0:01:33]} 31. Nc4 {
[%emt 0:00:31]} Qf6 {[%emt 0:00:58]} 32. Nxe5 {[%emt 0:00:46]} Rd6 {[%emt 0:00:
00]} 33. Nxc6 {[%emt 0:00:20]} Rxc6 {[%emt 0:00:07]} 34. Qa7+ {[%emt 0:00:13]}
Kc8 {[%emt 0:00:19]} 35. Rb1 {[%emt 0:00:41]} Qd6 {[%emt 0:00:50]} 36. Reb2 {
[%emt 0:00:33]} Kd8 {[%emt 0:00:29]} 37. Rb8+ {[%emt 0:00:18]} Rc8 {[%emt 0:00:
00]} 38. Qa5+ {[%emt 0:00:49]} Ke7 {[%emt 0:00:23]} 39. R1b7+ {[%emt 0:00:24]}
Ke6 {[%emt 0:00:39]} 40. Qh5 {[%emt 0:00:44]} Rxb8 {[%emt 0:01:24]} 41. Qg4+ {
[%emt 0:03:01]} Ke5 {[%emt 0:00:48]} 42. Qg3+ {[%emt 0:00:17]} Ke6 {[%emt 0:00:
00]} 43. Qg4+ {[%emt 0:01:36]} Ke5 {[%emt 0:00:10]} 44. Qg3+ {[%emt 0:00:20]}
Ke6 {[%emt 0:00:15]} 45. Qg4+ {[%emt 0:04:50]} Ke5 {[%emt 0:00:10]} 46. Qg3+ {
[%emt 0:02:22]} Ke6 {[%emt 0:00:56]} 1/2-1/2

[Event "44th Chess Olympiad Women 2022"]
[Site "Chennai"]
[Date "2022.08.05"]
[Round "7.45"]
[White "Khantree, Napat"]
[Black "Zavala Galindo, Alejandra Beatriz"]
[Result "0-1"]
[WhiteElo "1362"]
[BlackElo "1748"]
[Annotator "NA RC"]
[PlyCount "74"]
[EventDate "2022.??.??"]
[TimeControl "60"]

1. d4 {[%emt 0:00:03]} Nf6 {[%emt 0:00:09]} 2. c4 {[%emt 0:00:07]} c5 {[%emt 0:
00:00]} 3. d5 {[%emt 0:00:05]} d6 {[%emt 0:00:13]} 4. Nc3 {[%emt 0:00:13]} g6 {
[%emt 0:00:23]} 5. e4 {[%emt 0:01:12]} Bg7 {[%emt 0:00:26]} 6. Bd3 {[%emt 0:00:
00]} O-O {[%emt 0:01:16]} 7. f3 {[%emt 0:01:18]} e6 {[%emt 0:01:33]} 8. Nge2 {
[%emt 0:00:20]} Na6 {[%emt 0:06:04]} 9. Be3 {[%emt 0:00:18]} Nc7 {[%emt 0:00:
00]} 10. Qd2 {[%emt 0:00:17]} exd5 {[%emt 0:04:13]} 11. exd5 {[%emt 0:00:38]}
Re8 {[%emt 0:00:51]} 12. O-O {[%emt 0:01:25]} b5 {[%emt 0:05:20]} 13. Nxb5 {
[%emt 0:23:45]} Nxb5 {[%emt 0:10:41]} 14. cxb5 {[%emt 0:04:49]} Nxd5 {[%emt 0:
00:00]} 15. Bh6 {[%emt 0:05:40]} Bxh6 {[%emt 0:13:18]} 16. Qxh6 {[%emt 0:00:10]
} Ne3 {[%emt 0:00:21]} 17. Rfe1 {[%emt 0:00:47]} Bf5 {[%emt 0:06:00]} 18. Bxf5
{[%emt 0:00:50]} Nxf5 {[%emt 0:00:06]} 19. Qd2 {[%emt 0:00:46]} d5 {[%emt 0:00:
00]} 20. Rac1 {[%emt 0:08:34]} Rc8 {[%emt 0:01:20]} 21. Nc3 {[%emt 0:08:01]} d4
{[%emt 0:05:24]} 22. Ne4 {[%emt 0:00:10]} Qb6 {[%emt 0:01:17]} 23. b3 {[%emt 0:
00:00]} Kg7 {[%emt 0:03:26]} 24. Qd3 {[%emt 0:02:18]} Nd6 {[%emt 0:03:21]} 25.
Nxd6 {[%emt 0:01:33]} Qxd6 {[%emt 0:00:07]} 26. Kf2 {[%emt 0:02:06]} Qxh2 {
[%emt 0:10:08]} 27. Qd2 {[%emt 0:04:46]} Qh4+ {[%emt 0:00:57]} 28. Kf1 {
[%emt 0:00:10]} Qd8 {[%emt 0:03:04]} 29. Rxe8 {[%emt 0:00:41]} Qxe8 {[%emt 0:
00:00]} 30. a4 {[%emt 0:01:00]} Qe6 {[%emt 0:01:20]} 31. Qd3 {[%emt 0:00:35]}
Re8 {[%emt 0:01:16]} 32. Kf2 {[%emt 0:00:35]} Qf6 {[%emt 0:04:56]} 33. Qd2 {
[%emt 0:01:42]} Re5 {[%emt 0:01:06]} 34. Rh1 {[%emt 0:01:23]} h5 {[%emt 0:00:
00]} 35. a5 {[%emt 0:02:38]} Re3 {[%emt 0:00:43]} 36. b6 {[%emt 0:01:08]} axb6
{[%emt 0:00:20]} 37. a6 {[%emt 0:00:27]} Qe7 {[%emt 0:00:59]} 0-1

[Event "44th Chess Olympiad Women 2022"]
[Site "Chennai"]
[Date "2022.08.05"]
[Round "7.45"]
[White "Ortez, Andrea"]
[Black "Chuemsakul, Sarocha"]
[Result "0-1"]
[WhiteElo "1908"]
[BlackElo "1684"]
[Annotator "NA"]
[PlyCount "64"]
[EventDate "2022.??.??"]
[TimeControl "60"]

1. e4 {[%emt 0:00:03]} e5 {[%emt 0:00:11]} 2. Nf3 {[%emt 0:00:19]} Nc6 {
[%emt 0:00:09]} 3. Bb5 {[%emt 0:00:17]} a6 {[%emt 0:00:23]} 4. Ba4 {[%emt 0:00:
00]} d6 {[%emt 0:00:09]} 5. c3 {[%emt 0:00:27]} Bd7 {[%emt 0:00:23]} 6. d4 {
[%emt 0:00:48]} Nf6 {[%emt 0:04:40]} 7. Qe2 {[%emt 0:04:38]} g6 {[%emt 0:04:13]
} 8. Bg5 {[%emt 0:03:09]} h6 {[%emt 0:02:08]} 9. Bh4 {[%emt 0:01:19]} g5 {
[%emt 0:07:44]} 10. Bg3 {[%emt 0:00:28]} Bg7 {[%emt 0:07:29]} 11. h3 {[%emt 0:
00:00]} O-O {[%emt 0:01:10]} 12. d5 {[%emt 0:11:13]} Ne7 {[%emt 0:01:36]} 13.
Bc2 {[%emt 0:02:37]} Nh7 {[%emt 0:02:43]} 14. Nfd2 {[%emt 0:00:52]} f5 {
[%emt 0:03:17]} 15. f3 {[%emt 0:00:48]} Nf6 {[%emt 0:04:37]} 16. c4 {[%emt 0:
00:00]} Nh5 {[%emt 0:02:01]} 17. Bh2 {[%emt 0:02:30]} Nf4 {[%emt 0:14:13]} 18.
Bxf4 {[%emt 0:03:02]} exf4 {[%emt 0:00:06]} 19. Nc3 {[%emt 0:00:30]} fxe4 {
[%emt 0:07:05]} 20. Bxe4 {[%emt 0:05:20]} Nf5 {[%emt 0:05:47]} 21. Bxf5 {
[%emt 0:09:19]} Bxf5 {[%emt 0:00:13]} 22. O-O {[%emt 0:02:12]} Qf6 {[%emt 0:00:
00]} 23. Kh2 {[%emt 0:04:34]} Rae8 {[%emt 0:03:57]} 24. Qf2 {[%emt 0:02:17]}
Qg6 {[%emt 0:03:32]} 25. Rfe1 {[%emt 0:02:58]} h5 {[%emt 0:07:56]} 26. Rxe8 {
[%emt 0:05:23]} Rxe8 {[%emt 0:00:19]} 27. Re1 {[%emt 0:01:17]} Rxe1 {[%emt 0:
00:00]} 28. Qxe1 {[%emt 0:00:03]} g4 {[%emt 0:03:00]} 29. Ne2 {[%emt 0:12:33]}
Be5 {[%emt 0:01:44]} 30. hxg4 {[%emt 0:07:52]} hxg4 {[%emt 0:00:06]} 31. Qh4 {
[%emt 0:02:54]} Bf6 {[%emt 0:00:36]} 32. Nxf4 {[%emt 0:01:39]} Bxh4 {[%emt 0:
00:00]} 0-1

[Event "44th Chess Olympiad Women 2022"]
[Site "Chennai"]
[Date "2022.08.05"]
[Round "7.46"]
[White "Meddeb, Chadha"]
[Black "Silva Rosas, Natalia"]
[Result "0-1"]
[WhiteElo "1561"]
[BlackElo "1780"]
[Annotator "NA RC"]
[PlyCount "24"]
[EventDate "2022.??.??"]
[TimeControl "60"]

1. e4 {[%emt 0:00:08]} c5 {[%emt 0:00:16]} 2. Nf3 {[%emt 0:00:20]} e6 {[%emt 0:
00:00]} 3. d4 {[%emt 0:00:09]} cxd4 {[%emt 0:00:06]} 4. Nxd4 {[%emt 0:00:02]}
a6 {[%emt 0:00:03]} 5. Bd3 {[%emt 0:00:28]} Bc5 {[%emt 0:04:25]} 6. Nb3 {
[%emt 0:00:12]} Ba7 {[%emt 0:02:06]} 7. O-O {[%emt 0:00:26]} Nc6 {[%emt 0:00:
00]} 8. Qg4 {[%emt 0:02:50]} Nf6 {[%emt 0:01:02]} 9. Qxg7 {[%emt 0:05:43]} Rg8
{[%emt 0:00:15]} 10. Qh6 {[%emt 0:00:04]} Rg6 {[%emt 0:01:34]} 11. Qd2 {
[%emt 0:19:09]} Ne5 {[%emt 0:01:49]} 12. Nc3 {[%emt 0:03:17]} Nf3+ {[%emt 0:00:
00]} 0-1

[Event "44th Chess Olympiad Women 2022"]
[Site "Chennai"]
[Date "2022.08.05"]
[Round "7.46"]
[White "Mefteh, Meyssem"]
[Black "Silvera, Pilar"]
[Result "1/2-1/2"]
[WhiteElo "1254"]
[BlackElo "1436"]
[Annotator "NA RC"]
[PlyCount "112"]
[EventDate "2022.??.??"]
[TimeControl "60"]

1. e4 {[%emt 0:00:01]} c5 {[%emt 0:00:10]} 2. Nf3 {[%emt 0:00:04]} d6 {[%emt 0:
00:00]} 3. d4 {[%emt 0:00:07]} cxd4 {[%emt 0:00:07]} 4. Nxd4 {[%emt 0:00:04]}
Nf6 {[%emt 0:00:12]} 5. Nc3 {[%emt 0:00:06]} g6 {[%emt 0:00:08]} 6. Be3 {
[%emt 0:00:19]} Bg7 {[%emt 0:00:10]} 7. f3 {[%emt 0:00:36]} O-O {[%emt 0:00:11]
} 8. Qd2 {[%emt 0:00:04]} Nc6 {[%emt 0:00:10]} 9. O-O-O {[%emt 0:00:05]} d5 {
[%emt 0:12:15]} 10. Qe1 {[%emt 0:00:54]} e6 {[%emt 0:27:11]} 11. Qh4 {[%emt 0:
00:00]} Nxd4 {[%emt 0:18:43]} 12. Bxd4 {[%emt 0:04:18]} dxe4 {[%emt 0:00:34]}
13. Be5 {[%emt 0:19:30]} Bd7 {[%emt 0:11:33]} 14. Nxe4 {[%emt 0:11:18]} Nd5 {
[%emt 0:08:59]} 15. Ng5 {[%emt 0:07:27]} h6 {[%emt 0:01:05]} 16. Bxg7 {[%emt 0:
00:00]} Kxg7 {[%emt 0:01:41]} 17. Qd4+ {[%emt 0:00:58]} Qf6 {[%emt 0:01:02]}
18. Qxf6+ {[%emt 0:00:42]} Nxf6 {[%emt 0:00:23]} 19. Ne4 {[%emt 0:01:19]} Nxe4
{[%emt 0:00:57]} 20. Rxd7 {[%emt 0:02:40]} Nc5 {[%emt 0:00:07]} 21. Rc7 {
[%emt 0:01:22]} Rac8 {[%emt 0:00:24]} 22. Rxc8 {[%emt 0:00:13]} Rxc8 {[%emt 0:
00:00]} 23. Be2 {[%emt 0:00:47]} Rd8 {[%emt 0:00:26]} 24. Rd1 {[%emt 0:03:29]}
Rxd1+ {[%emt 0:00:38]} 25. Kxd1 {[%emt 0:00:34]} Kf6 {[%emt 0:00:00]} 26. Kd2 {
[%emt 0:00:28]} Ke5 {[%emt 0:02:20]} 27. g3 {[%emt 0:01:12]} g5 {[%emt 0:04:51]
} 28. Kc3 {[%emt 0:02:57]} Kd5 {[%emt 0:03:06]} 29. b4 {[%emt 0:01:56]} Nd7 {
[%emt 0:03:09]} 30. Bc4+ {[%emt 0:02:01]} Ke5 {[%emt 0:00:30]} 31. Kd3 {
[%emt 0:00:44]} Nb6 {[%emt 0:00:20]} 32. a3 {[%emt 0:01:09]} Nd5 {[%emt 0:00:
00]} 33. Bb3 {[%emt 0:00:44]} f5 {[%emt 0:01:14]} 34. c4 {[%emt 0:00:24]} Nf6 {
[%emt 0:01:57]} 35. Ba2 {[%emt 0:00:42]} h5 {[%emt 0:00:48]} 36. h3 {[%emt 0:
00:00]} h4 {[%emt 0:00:40]} 37. g4 {[%emt 0:00:49]} fxg4 {[%emt 0:00:18]} 38.
fxg4 {[%emt 0:00:08]} Nxg4 {[%emt 0:00:39]} 39. Ke2 {[%emt 0:00:39]} Nf6 {
[%emt 0:00:32]} 40. Kf3 {[%emt 0:00:18]} Kd4 {[%emt 0:00:19]} 41. c5 {[%emt 0:
00:00]} e5 {[%emt 0:30:10]} 42. Be6 {[%emt 0:00:19]} e4+ {[%emt 0:00:54]} 43.
Ke2 {[%emt 0:00:00]} Ne8 {[%emt 0:00:00]} 44. Bc8 {[%emt 0:00:00]} b6 {[%emt 0:
00:00]} 45. cxb6 {[%emt 0:00:00]} axb6 {[%emt 0:00:00]} 46. a4 {[%emt 0:00:00]}
Nd6 {[%emt 0:00:00]} 47. Bd7 {[%emt 0:00:00]} Kc4 {[%emt 0:00:00]} 48. a5 {
[%emt 0:00:00]} bxa5 {[%emt 0:00:00]} 49. bxa5 {[%emt 0:00:00]} Kc5 {[%emt 0:
00:00]} 50. Ke3 {[%emt 0:00:00]} Nc4+ {[%emt 0:00:00]} 51. Kxe4 {[%emt 0:00:00]
} Nxa5 {[%emt 0:00:00]} 52. Bg4 {[%emt 0:00:00]} Nc6 {[%emt 0:00:00]} 53. Kf5 {
[%emt 0:00:00]} Nb4 {[%emt 0:02:06]} 54. Kxg5 {[%emt 0:00:00]} Nd3 {[%emt 0:00:
00]} 55. Kxh4 {[%emt 0:00:00]} Nf2 {[%emt 0:00:11]} 56. Kg3 {[%emt 0:00:00]}
Nxh3 {[%emt 0:00:09]} 1/2-1/2

[Event "44th Chess Olympiad Women 2022"]
[Site "Chennai"]
[Date "2022.08.05"]
[Round "7.46"]
[White "Quevedo, Andreina"]
[Black "Ben Said, Safa"]
[Result "1-0"]
[WhiteElo "1841"]
[BlackElo "1564"]
[Annotator "NA"]
[PlyCount "77"]
[EventDate "2022.??.??"]
[TimeControl "60"]

1. e4 {[%emt 0:00:11]} e6 {[%emt 0:00:17]} 2. d4 {[%emt 0:00:05]} d5 {[%emt 0:
00:00]} 3. Nd2 {[%emt 0:00:10]} Nf6 {[%emt 0:00:37]} 4. e5 {[%emt 0:00:32]}
Nfd7 {[%emt 0:00:07]} 5. Bd3 {[%emt 0:00:25]} c5 {[%emt 0:00:35]} 6. c3 {
[%emt 0:00:09]} Nc6 {[%emt 0:00:24]} 7. Ne2 {[%emt 0:00:22]} cxd4 {[%emt 0:00:
00]} 8. cxd4 {[%emt 0:00:14]} f6 {[%emt 0:09:47]} 9. exf6 {[%emt 0:02:12]} Nxf6
{[%emt 0:00:23]} 10. Nf3 {[%emt 0:01:48]} Bd6 {[%emt 0:01:41]} 11. O-O {
[%emt 0:01:25]} Qc7 {[%emt 0:01:27]} 12. Nc3 {[%emt 0:03:25]} a6 {[%emt 0:00:
00]} 13. Re1 {[%emt 0:01:26]} O-O {[%emt 0:01:21]} 14. h3 {[%emt 0:01:24]} e5 {
[%emt 0:06:29]} 15. dxe5 {[%emt 0:00:48]} Nxe5 {[%emt 0:00:16]} 16. Nxe5 {
[%emt 0:11:06]} Bxe5 {[%emt 0:00:06]} 17. Qb3 {[%emt 0:02:08]} Kh8 {[%emt 0:00:
00]} 18. Nxd5 {[%emt 0:15:00]} Bh2+ {[%emt 0:03:14]} 19. Kh1 {[%emt 0:04:05]}
Nxd5 {[%emt 0:00:50]} 20. Qxd5 {[%emt 0:00:12]} Bxh3 {[%emt 0:02:20]} 21. gxh3
{[%emt 0:23:24]} Rxf2 {[%emt 0:00:31]} 22. Qe4 {[%emt 0:00:32]} Qc6 {[%emt 0:
00:00]} 23. Qxc6 {[%emt 0:02:28]} bxc6 {[%emt 0:00:04]} 24. Bxa6 {[%emt 0:00:
00]} Bc7 {[%emt 0:12:44]} 25. Bf1 {[%emt 0:09:48]} Raf8 {[%emt 0:02:12]} 26.
Bg2 {[%emt 0:01:03]} Bg3 {[%emt 0:03:48]} 27. Be3 {[%emt 0:04:00]} Rxb2 {
[%emt 0:02:21]} 28. Rf1 {[%emt 0:00:40]} Rc8 {[%emt 0:01:21]} 29. a4 {[%emt 0:
00:00]} Be5 {[%emt 0:01:55]} 30. Rac1 {[%emt 0:00:36]} g6 {[%emt 0:02:20]} 31.
Rc5 {[%emt 0:00:21]} Bg7 {[%emt 0:03:43]} 32. Rxc6 {[%emt 0:00:07]} Re8 {
[%emt 0:01:19]} 33. Bf4 {[%emt 0:01:00]} Ra2 {[%emt 0:01:15]} 34. Rc4 {[%emt 0:
00:00]} h6 {[%emt 0:01:55]} 35. Bf3 {[%emt 0:01:10]} g5 {[%emt 0:00:24]} 36.
Bg3 {[%emt 0:00:15]} Re3 {[%emt 0:02:17]} 37. Rc8+ {[%emt 0:00:04]} Kh7 {
[%emt 0:00:09]} 38. Bd5 {[%emt 0:00:49]} Rxg3 {[%emt 0:03:30]} 39. Be4# {
[%emt 0:00:27]} 1-0